fUST/lending_fUST_20250829
["ID","MTS","AMOUNT","RATE_DAILY","PERIOD"]
[381941891,1756431043596,-786.44,0.00022191,2]
[381941893,1756431043605,-480.0,0.00022191,2]
[381941895,1756431043615,-480.0,0.00022191,2]
[381941897,1756431043624,-263.72608318,0.00022191,2]
[381941899,1756431043633,-360.0,0.00022206,2]
[381941902,1756431043642,-174.09298016,0.00022446,2]
[381941904,1756431043652,-1566.85,0.00022465,2]
[381941906,1756431043661,-480.0,0.00022465,2]
[381941908,1756431043671,-480.0,0.00022465,2]
[381941910,1756431043680,-493.82,0.00022465,2]
[381941912,1756431043689,-1635.95,0.00022465,2]
[381941914,1756431043698,-642.23,0.00022465,2]
[381941916,1756431043708,-1076.11,0.00022465,2]
[381941917,1756431043717,-480.0,0.00022465,2]
[381941919,1756431043726,-941.3,0.00022465,2]
[381941921,1756431043735,-500.35,0.00022465,2]
[381941923,1756431043744,-480.0,0.00022465,2]
[381941925,1756431043754,-786.44,0.00022465,2]
[381941927,1756431043763,-480.0,0.00022465,2]
[381941929,1756431043772,-480.0,0.00022465,2]
[381941931,1756431043781,-250.0,0.00022466,2]
[381941933,1756431043790,-278.99542258,0.000225,2]
[381941936,1756431043800,-1566.85,0.00022739,2]
[381941938,1756431043811,-480.0,0.00022739,2]
[381941939,1756431043821,-480.0,0.00022739,2]
[381941940,1756431043830,-493.82,0.00022739,2]
[381941941,1756431043840,-1635.95,0.00022739,2]
[381941942,1756431043849,-642.23,0.00022739,2]
[381941943,1756431043857,-1076.11,0.00022739,2]
[381941944,1756431043869,-480.0,0.00022739,2]
[381941945,1756431043879,-941.3,0.00022739,2]
[381941946,1756431043888,-480.0,0.00022739,2]
[381941947,1756431043898,-786.44,0.00022739,2]
[381941948,1756431043906,-480.0,0.00022739,2]
[381941949,1756431043915,-480.0,0.00022739,2]
[381941950,1756431043924,-460.0,0.00022754,2]
[381941951,1756431043933,-587.0,0.00022776,2]
[381941952,1756431043942,-1566.85,0.00023013,2]
[381941953,1756431043951,-480.0,0.00023013,2]
[381941954,1756431043961,-480.0,0.00023013,2]
[381941957,1756431043971,-493.82,0.00023013,2]
[381941958,1756431043986,-1635.95,0.00023013,2]
[381941960,1756431043996,-642.23,0.00023013,2]
[381941962,1756431044005,-1076.11,0.00023013,2]
[381941964,1756431044015,-480.0,0.00023013,2]
[381941966,1756431044025,-941.3,0.00023013,2]
[381941968,1756431044034,-480.0,0.00023013,2]
[381941970,1756431044043,-786.44,0.00023013,2]
[381941972,1756431044052,-480.0,0.00023013,2]
[381941974,1756431044061,-480.0,0.00023013,2]
[381941976,1756431044071,-200.0,0.00023014,2]
[381941978,1756431044080,-1566.85,0.00023287,2]
[381941980,1756431044089,-156.22,0.00023287,2]
[381941982,1756431044099,-532.15,0.00023287,2]
[381941985,1756431044108,-493.82,0.00023287,2]
[381941987,1756431044118,-1635.95,0.00023287,2]
[381941989,1756431044127,-642.23,0.00023287,2]
[381941991,1756431044136,-1076.11,0.00023287,2]
[381941993,1756431044147,-480.0,0.00023287,2]
[381941995,1756431044156,-941.3,0.00023287,2]
[381941997,1756431044165,-480.0,0.00023287,2]
[381941998,1756431044176,-786.44,0.00023287,2]
[381942000,1756431044185,-480.0,0.00023287,2]
[381942002,1756431044194,-480.0,0.00023287,2]
[381942004,1756431044203,-560.0,0.00023302,2]
[381942006,1756431044212,-153.351177,0.00023496,2]
[381942008,1756431044222,-1566.85,0.00023561,2]
[381942011,1756431044231,-493.82,0.00023561,2]
[381942013,1756431044241,-1635.95,0.00023561,2]
[381942014,1756431044250,-642.23,0.00023561,2]
[381942017,1756431044259,-1076.11,0.00023561,2]
[381942019,1756431044269,-480.0,0.00023561,2]
[381942021,1756431044279,-941.3,0.00023561,2]
[381942023,1756431044288,-495.59,0.00023561,2]
[381942025,1756431044298,-786.44,0.00023561,2]
[381942027,1756431044307,-245.11,0.00023561,2]
[381942029,1756431044316,-480.0,0.00023561,2]
[381942031,1756431044325,-174.09298016,0.00023623,2]
[381942033,1756431044334,-864.0,0.00023668,20]
[381942035,1756431044343,-5361.14,0.000238,2]
[381942037,1756431044353,-2151.0,0.00023833,2]
[381942039,1756431044362,-632.0,0.00023833,2]
[381942041,1756431044371,-409.0,0.00023833,2]
[381942043,1756431044381,-417.947,0.00023833,2]
[381942045,1756431044390,-1566.85,0.00023835,2]
[381942047,1756431044401,-493.82,0.00023835,2]
[381942060,1756431044516,-1635.95,0.00023835,2]
[381942062,1756431044525,-642.23,0.00023835,2]
[381942064,1756431044535,-1076.11,0.00023835,2]
[381942066,1756431044545,-480.0,0.00023835,2]
[381942068,1756431044555,-941.3,0.00023835,2]
[381942070,1756431044564,-786.44,0.00023835,2]
[381942072,1756431044573,-480.0,0.00023835,2]
[381942074,1756431044583,-660.0,0.0002385,2]
[381942076,1756431044592,-500.0,0.00023973,2]
[381942078,1756431044601,-520.46407251,0.00023973,2]
[381942080,1756431044611,-1704.76013224,0.00024,2]
[381942082,1756431044620,-456.92144937,0.00024,2]
[381942084,1756431044630,-1566.85,0.00024109,2]
[381942086,1756431044640,-493.82,0.00024109,2]
[381942088,1756431044651,-1635.95,0.00024109,2]
[381942090,1756431044661,-642.23,0.00024109,2]
[381942092,1756431044670,-1076.11,0.00024109,2]
[381942094,1756431044679,-480.0,0.00024109,2]
[381942096,1756431044689,-941.3,0.00024109,2]
[381942098,1756431044698,-786.44,0.00024109,2]
[381942100,1756431044707,-244.98,0.00024109,2]
[381942102,1756431044717,-3387.64,0.000243,7]
[381942104,1756431044726,-1566.85,0.00024383,2]
[381942106,1756431044735,-493.82,0.00024383,2]
[381942108,1756431044744,-1635.95,0.00024383,2]
[381942110,1756431044754,-642.23,0.00024383,2]
[381942112,1756431044763,-1076.11,0.00024383,2]
[381942114,1756431044772,-480.0,0.00024383,2]
[381942116,1756431044782,-941.3,0.00024383,2]
[381942118,1756431044791,-786.44,0.00024383,2]
[381942120,1756431044801,-760.0,0.00024398,2]
[381942123,1756431044812,-744.3,0.000244,7]
[381942124,1756431044822,-40110.90634259,0.0002465,2]
[381942127,1756431044831,-505.50831173,0.0002465,2]
[381942129,1756431044840,-1566.85,0.00024657,2]
[381942131,1756431044850,-493.82,0.00024657,2]
[381942133,1756431044862,-1635.95,0.00024657,2]
[381942134,1756431044871,-642.23,0.00024657,2]
[381942137,1756431044880,-1076.11,0.00024657,2]
[381942139,1756431044892,-218.01,0.00024657,2]
[381942140,1756431044904,-941.3,0.00024657,2]
[381942143,1756431044913,-786.44,0.00024657,2]
[381942145,1756431044923,-150.52458134,0.00024658,2]
[381942147,1756431044932,-477.005,0.00024701,7]
[381942149,1756431044943,-174.09298016,0.000248,2]
[381942151,1756431044952,-29233.13657,0.000248,2]
[381942153,1756431044962,-823.0,0.00024821,2]
[381942155,1756431044972,-2159.36852498,0.00024849,2]
[381942157,1756431044982,-11693.254628,0.0002488,2]
[381942159,1756431044991,-151.0,0.000249,7]
[381942161,1756431045001,-151.0,0.000249,7]
[381942163,1756431045010,-151.0,0.000249,7]
[381942165,1756431045020,-151.0,0.000249,7]
[381942167,1756431045029,-151.0,0.000249,7]
[381942169,1756431045039,-151.0,0.000249,7]
[381942171,1756431045048,-151.0,0.000249,7]
[381942173,1756431045057,-1566.85,0.00024931,2]
[381942175,1756431045067,-493.82,0.00024931,2]
[381942177,1756431045076,-1635.95,0.00024931,2]
[381942179,1756431045086,-642.23,0.00024931,2]
[381942181,1756431045096,-1076.11,0.00024931,2]
[381942183,1756431045105,-941.3,0.00024931,2]
[381942185,1756431045115,-786.44,0.00024931,2]
[381942187,1756431045124,-151.0,0.00024931,7]
[381942189,1756431045133,-151.0,0.00024931,7]
[381942191,1756431045143,-152.011549,0.00024931,7]
[381942193,1756431045155,-154.857441,0.00024931,7]
[381942195,1756431045165,-860.0,0.00024946,2]
[381942197,1756431045175,-204.261286,0.00025,2]
[381942199,1756431045186,-2347.87260389,0.00025025,2]
[381942201,1756431045199,-187.78006525,0.00025025,2]
[381942203,1756431045210,-2120.5311063,0.0002508,2]
[381942205,1756431045221,-168.0,0.00025184,2]
[381942207,1756431045232,-1566.85,0.00025205,2]
[381942209,1756431045242,-493.82,0.00025205,2]
[381942211,1756431045252,-1635.95,0.00025205,2]
[381942213,1756431045263,-642.23,0.00025205,2]
[381942216,1756431045273,-1076.11,0.00025205,2]
[381942218,1756431045284,-941.3,0.00025205,2]
[381942220,1756431045299,-786.44,0.00025205,2]
[381942222,1756431045310,-1566.96,0.00025479,2]
[381942223,1756431045320,-493.86,0.00025479,2]
[381942226,1756431045331,-1636.01,0.00025479,2]
[381942228,1756431045341,-642.44,0.00025479,2]
[381942229,1756431045352,-1076.19,0.00025479,2]
[381942231,1756431045362,-941.38528291,0.00025479,2]
[381942234,1756431045373,-786.47,0.00025479,2]
[381942236,1756431045383,-960.0,0.00025494,2]
[381942238,1756431045393,-153.351177,0.00025728,2]
[381942240,1756431045406,-153.351177,0.00025868,4]
[381942242,1756431045417,-647.0,0.000259,2]
[381942244,1756431045426,-5361.14,0.000259,2]
[381942246,1756431045436,-151.0,0.000259,7]
[381942248,1756431045446,-151.0,0.000259,7]
[381942250,1756431045456,-225.750289,0.000259,7]
[381942252,1756431045466,-151.0,0.000259,7]
[381942254,1756431045475,-151.0,0.000259,7]
[381942256,1756431045484,-225.750289,0.000259,7]
[381942258,1756431045493,-225.750289,0.000259,7]
[381942260,1756431045503,-151.0,0.000259,7]
[381942262,1756431045513,-186.941192,0.000259,7]
[381942264,1756431045522,-225.750289,0.000259,7]
[381942266,1756431045532,-151.0,0.000259,7]
[381942268,1756431045542,-151.0,0.000259,7]
[381942270,1756431045552,-151.0,0.000259,7]
[381942272,1756431045561,-151.0,0.000259,7]
[381942274,1756431045571,-151.0,0.000259,7]
[381942276,1756431045580,-151.0,0.000259,7]
[381942278,1756431045589,-153.351177,0.00025957,3]
[381942280,1756431045599,-4000.0,0.00025993,4]
[381942282,1756431045608,-1810.48480368,0.00026,30]
[381942284,1756431045618,-1000.0,0.00026035,20]
[381942286,1756431045627,-1060.0,0.00026042,2]
[381942288,1756431045636,-160.0,0.00026062,7]
[381942290,1756431045645,-217.27834477,0.00026062,7]
[381942292,1756431045656,-232.64478309,0.00026062,7]
[381942294,1756431045665,-251.47,0.00026071,7]
[381942296,1756431045674,-197.6081843,0.00026394,2]
[381942298,1756431045684,-1160.0,0.0002659,2]
[381942300,1756431045693,-3387.64,0.000266,7]
[381942302,1756431045703,-160.0,0.000266,7]
[381942304,1756431045711,-845.47023312,0.000266,7]
[381942306,1756431045721,-529.67291817,0.000266,7]
[381942308,1756431045730,-160.0,0.000266,7]
[381942310,1756431045739,-417.15472785,0.000266,7]
[381942312,1756431045749,-2923.313657,0.0002679,2]
[381942314,1756431045758,-2151.0,0.00026833,2]
[381942316,1756431045768,-632.0,0.00026833,2]
[381942318,1756431045777,-409.0,0.00026833,2]
[381942320,1756431045786,-409.0,0.00026833,2]
[381942322,1756431045795,-744.3,0.000269,7]
[381942324,1756431045807,-160.0,0.00026978,3]
[381942326,1756431045816,-425.52029335,0.00027,3]
[381942328,1756431045825,-1152.0,0.0002705,2]
[381942330,1756431045835,-160.0,0.00027119,4]
[381942332,1756431045844,-1260.0,0.00027138,2]
[381942334,1756431045854,-160.0,0.00027259,5]
[381942336,1756431045863,-160.0,0.000274,6]
[381942338,1756431045873,-153.351177,0.00027538,3]
[381942340,1756431045882,-160.0,0.0002754,7]
[381942342,1756431045891,-153.351177,0.00027678,4]
[381942344,1756431045902,-160.0,0.00027681,8]
[381942346,1756431045911,-164.16328593,0.00027686,2]
[381942348,1756431045920,-160.0,0.00027821,9]
[381942350,1756431045929,-153.351177,0.00027961,2]
[381942352,1756431045938,-160.0,0.00027962,10]
[381942354,1756431045947,-425.52029335,0.00028,10]
[381942356,1756431045957,-425.52029335,0.00028,10]
[381942358,1756431045966,-845.47023312,0.00028,3]
[381942360,1756431045975,-5361.14,0.00028,2]
[381942361,1756431045985,-160.0,0.00028102,11]
[381942362,1756431045994,-160.0,0.00028242,12]
[381942363,1756431046003,-160.0,0.00028383,13]
[381942364,1756431046013,-160.0,0.00028523,14]
[381942365,1756431046022,-1000.0,0.00028639,20]
[381942366,1756431046031,-244.0,0.00028639,20]
[381942367,1756431046040,-160.0,0.00028664,15]
[381942368,1756431046050,-237.73292869,0.00028719,30]
[381942369,1756431046060,-500.0,0.00028762,2]
[381942371,1756431046069,-160.0,0.00028804,16]
[381942373,1756431046078,-500.0,0.00028817,2]
[381942375,1756431046087,-500.0,0.00028882,2]
[381942376,1756431046096,-744.3,0.000289,7]
[381942377,1756431046105,-160.0,0.00028945,17]
[381942378,1756431046115,-726.3086534,0.00028958,2]
[381942379,1756431046123,-500.0,0.00028974,2]
[381942380,1756431046133,-845.47023312,0.00029,10]
[381942381,1756431046142,-845.47023312,0.00029,10]
[381942382,1756431046152,-500.0,0.0002902,2]
[381942383,1756431046161,-1000.0,0.00029085,2]
[381942384,1756431046170,-160.0,0.00029085,18]
[381942385,1756431046180,-158.7199,0.0002911,2]
[381942386,1756431046189,-153.351177,0.00029119,3]
[381942387,1756431046199,-500.0,0.0002917,5]
[381942388,1756431046208,-500.0,0.0002917,5]
[381942389,1756431046218,-500.0,0.00029187,20]
[381942390,1756431046227,-2923.313657,0.0002919,2]
[381942391,1756431046236,-160.0,0.00029226,19]
[381942392,1756431046246,-500.0,0.0002923,2]
[381942393,1756431046255,-160.0,0.00029366,20]
[381942394,1756431046264,-3387.64,0.000294,7]
[381942395,1756431046273,-202.0,0.0002946,24]
[381942396,1756431046282,-1600.0,0.0002948,2]
[381942397,1756431046291,-153.351177,0.00029489,4]
[381942398,1756431046300,-160.0,0.000295,7]
[381942399,1756431046309,-425.52029335,0.000295,7]
[381942400,1756431046319,-160.0,0.00029507,21]
[381942401,1756431046328,-317.109114,0.00029589,120]
[381942402,1756431046338,-3440.89446106,0.00029626,2]
[381942403,1756431046347,-160.0,0.00029647,22]
[381942404,1756431046356,-160.0,0.00029788,23]
[381942405,1756431046365,-2151.0,0.00029833,2]
[381942406,1756431046374,-632.0,0.00029833,2]
[381942407,1756431046383,-409.0,0.00029833,2]
[381942408,1756431046393,-409.0,0.00029833,2]
[381942409,1756431046403,-500.0,0.00029864,2]
[381942410,1756431046412,-160.0,0.00029928,24]
[381942411,1756431046421,-1000.0,0.0003,30]
[381942412,1756431046431,-1000.0,0.0003,120]
[381942413,1756431046440,-160.0,0.0003,10]
[381942414,1756431046449,-160.0,0.0003,10]
[381942415,1756431046459,-1401.9,0.0003,4]
[381942416,1756431046468,-156.8418574,0.00030005,2]
[381942417,1756431046477,-500.0,0.00030024,7]
[381942418,1756431046487,-5846.627314,0.00030027,2]
[381942419,1756431046496,-28881.11518831,0.00030037,2]
[381942420,1756431046564,-480.0,0.00020273,2]
[381942421,1756431046573,-76234.41372811,0.00030037,2]
[381942422,1756431046583,-160.0,0.00030068,25]
[381942423,1756431046593,-169.11806111,0.00030068,5]
[381942424,1756431046603,-500.0,0.00030087,7]
[381942425,1756431046612,-182.1628,0.000301,2]
[381942426,1756431046621,-182.1628,0.000301,2]
[381942427,1756431046632,-151.0,0.00030124,7]
[381942428,1756431046642,-151.0,0.00030124,7]
[381942429,1756431046651,-1000.0,0.00030124,2]
[381942430,1756431046661,-2923.313657,0.00030127,2]
[381942431,1756431046670,-38555.7531873,0.00030137,2]
[381942432,1756431046679,-226.04664268,0.00030137,2]
[381942434,1756431046688,-251.47,0.00030137,30]
[381942436,1756431046699,-500.0,0.00030138,2]
[381942438,1756431046708,-91133.70937499,0.00030142,2]
[381942440,1756431046716,-300.0,0.00030142,2]
[381942442,1756431046726,-3876.67444437,0.00030142,2]
[381942444,1756431046735,-808.84718051,0.00030142,2]
[381942445,1756431046744,-254.52033887,0.00030142,2]
[381942446,1756431046753,-296.56388014,0.00030142,2]
[381942447,1756431046762,-326.66294407,0.00030142,2]
[381942448,1756431046771,-291.53888322,0.00030142,2]
[381942449,1756431046780,-51673.48665892,0.00030142,2]
[381942450,1756431046789,-636.56297801,0.00030142,2]
[381942451,1756431046798,-1360.02520508,0.00030142,2]
[381942452,1756431046808,-156.45495337,0.00030142,2]
[381942453,1756431046819,-15003.8639197,0.00030142,2]
[381942454,1756431046828,-6286.25326516,0.00030142,2]
[381942455,1756431046837,-157.46379273,0.00030142,2]
[381942456,1756431046847,-1714.64277342,0.00030142,2]
[381942457,1756431046856,-1867.24659849,0.00030142,2]
[381942458,1756431046864,-507.05777697,0.00030142,2]
[381942459,1756431046874,-179.11051836,0.00030142,2]
[381942460,1756431046883,-467.36222109,0.00030142,2]
[381942461,1756431046894,-30417.16399586,0.00030142,2]
[381942462,1756431046905,-188.97070192,0.00030142,2]
[381942463,1756431046915,-1395.02991644,0.00030142,2]
[381942464,1756431046924,-5887.42621866,0.00030142,2]
[381942465,1756431046933,-10672.01861662,0.00030142,2]
[381942466,1756431046943,-650.50711888,0.00030142,2]
[381942467,1756431046952,-903.53937549,0.00030142,2]
[381942468,1756431046962,-477.15716056,0.00030142,2]
[381942469,1756431046971,-2920.0,0.00030142,2]
[381942470,1756431046980,-163.13112938,0.00030142,2]
[381942471,1756431046990,-384.59387798,0.00030142,2]
[381942472,1756431046999,-201.24539244,0.00030142,2]
[381942473,1756431047008,-4909.0767196,0.00030142,5]
[381942474,1756431047017,-3144.16748228,0.00030142,2]
[381942475,1756431047026,-2345.74690566,0.00030142,2]
[381942476,1756431047036,-166.42366971,0.00030142,2]
[381942477,1756431047045,-100140.62340114,0.00030142,2]
[381942478,1756431047054,-150.17904804,0.00030142,2]
[381942479,1756431047063,-160.4830633,0.00030142,2]
[381942480,1756431047073,-258.2583958,0.00030142,2]
[381942481,1756431047082,-6812.12491184,0.00030142,5]
[381942482,1756431047092,-56215.95990447,0.00030142,2]
[381942483,1756431047101,-98241.51702478,0.00030142,2]
[381942484,1756431047114,-2742.72900032,0.00030142,2]
[381942486,1756431047124,-48000.0,0.00030142,2]
[381942487,1756431047134,-9492.40246575,0.00030142,5]
[381942488,1756431047143,-157.2,0.00030142,2]
[381942489,1756431047155,-500.0,0.00030142,3]
[381942490,1756431047164,-981.77817331,0.00030142,2]
[381942491,1756431047173,-9477.28686841,0.00030142,2]
[381942492,1756431047182,-1589.0,0.00030142,3]
[381942493,1756431047192,-1304.61436546,0.00030142,2]
[381942494,1756431047299,-1999.99999901,0.00030142,7]
[381942495,1756431047309,-6396.0,0.00030142,5]
[381942496,1756431047319,-3146.32644458,0.00030142,2]
[381942497,1756431047328,-1226.1762797,0.00030142,15]
[381942498,1756431047337,-1000.0,0.00030142,30]
[381942499,1756431047347,-709.68644995,0.00030142,30]
[381942500,1756431047356,-156.05106562,0.00030142,7]
[381942501,1756431047365,-1190.17892616,0.00030142,2]
[381942502,1756431047375,-488.23,0.00030142,2]
[381942503,1756431047384,-325.54912672,0.00030142,7]
[381942504,1756431047393,-875.29313731,0.00030142,30]
[381942505,1756431047403,-261.43281484,0.00030142,30]
[381942506,1756431047413,-965.53610849,0.00030142,32]
[381942507,1756431047422,-241.98399648,0.00030142,30]
[381942508,1756431047431,-1228.87998935,0.00030142,30]
[381942509,1756431047441,-246.33761421,0.00030142,30]
[381942510,1756431047451,-675.0769638,0.00030142,30]
[381942511,1756431047460,-300.16239086,0.00030142,30]
[381942512,1756431047470,-2250.13911335,0.00030142,30]
[381942513,1756431047479,-180.35114095,0.00030142,30]
[381942514,1756431047488,-178.82661342,0.00030142,30]
[381942515,1756431047498,-624.01483469,0.00030142,30]
[381942516,1756431047512,-239.01020923,0.00030142,30]
[381942517,1756431047530,-9675.32120167,0.00030142,30]
[381942518,1756431047540,-1013.32531825,0.00030142,10]
[381942519,1756431047552,-334.26103727,0.00030142,2]
[381942520,1756431047561,-250.0,0.00030142,10]
[381942521,1756431047581,-250.0,0.00030142,10]
[381942522,1756431047596,-250.0,0.00030142,10]
[381942523,1756431047606,-385.535794,0.00030142,10]
[381942524,1756431047615,-149.999999,0.00030142,14]
[381942525,1756431047629,-575.0,0.00030142,30]
[381942526,1756431047639,-151.0,0.00030142,7]
[381942527,1756431047649,-151.0,0.00030142,7]
[381942528,1756431047658,-151.0,0.00030142,7]
[381942529,1756431047668,-151.0,0.00030142,7]
[381942530,1756431047677,-151.0,0.00030142,7]
[381942531,1756431047687,-151.0,0.00030142,7]
[381942532,1756431047697,-151.0,0.00030142,7]
[381942533,1756431047705,-151.0,0.00030142,7]
[381942534,1756431047715,-151.0,0.00030142,7]
[381942535,1756431047725,-151.0,0.00030142,7]
[381942536,1756431047734,-225.750289,0.00030142,7]
[381942537,1756431047744,-218.705494,0.00030142,7]
[381942538,1756431047754,-225.750289,0.00030142,7]
[381942539,1756431047763,-298.943262,0.00030142,7]
[381942540,1756431047772,-225.750289,0.00030142,7]
[381942541,1756431047782,-225.750289,0.00030142,7]
[381942542,1756431047791,-225.750289,0.00030142,7]
[381942543,1756431047800,-225.750289,0.00030142,7]
[381942544,1756431047813,-225.750289,0.00030142,7]
[381942545,1756431047823,-225.750289,0.00030142,7]
[381942546,1756431047833,-151.0,0.00030142,7]
[381942547,1756431047843,-151.0,0.00030142,7]
[381942548,1756431047852,-151.0,0.00030142,7]
[381942549,1756431047861,-151.0,0.00030142,7]
[381942550,1756431047870,-151.0,0.00030142,7]
[381942551,1756431047880,-151.0,0.00030142,7]
[381942552,1756431047889,-151.0,0.00030142,7]
[381942553,1756431047901,-254.383695,0.00030142,7]
[381942554,1756431047911,-156.018849,0.00030142,7]
[381942555,1756431047921,-160.680856,0.00030142,7]
[381942556,1756431047930,-200.0,0.0003016,60]
[381942557,1756431047940,-500.0,0.0003016,7]
[381942558,1756431047950,-536.52,0.00030166,60]
[381942559,1756431047959,-305.02,0.00030175,60]
[381942560,1756431047969,-153.351177,0.00030194,2]
[381942561,1756431047979,-157.732642,0.00030194,2]
[381942562,1756431047988,-979.01213485,0.000302,2]
[381942563,1756431047999,-2249.73,0.000302,7]
[381942564,1756431048010,-160.0,0.000302,30]
[381942565,1756431048020,-425.52029335,0.000302,30]
[381942566,1756431048030,-613.56,0.00030232,15]
[381942567,1756431048040,-613.56,0.00030332,15]
[381942568,1756431048049,-500.0,0.00030412,2]
[381942569,1756431048059,-500.0,0.00030425,7]
[381942570,1756431048068,-613.56,0.00030432,15]
[381942571,1756431048077,-866.30152467,0.0003046,30]
[381942572,1756431048087,-10386.11066553,0.000305,2]
[381942573,1756431048096,-200.0,0.00030512,120]
[381942574,1756431048105,-613.56,0.00030532,15]
[381942575,1756431048114,-153.351177,0.00030586,7]
[381942576,1756431048123,-2923.313657,0.0003059,2]
[381942577,1756431048132,-500.0,0.000306,7]
[381942578,1756431048141,-613.56,0.00030632,15]
[381942579,1756431048154,-1000.0,0.00030672,7]
[381942580,1756431048164,-640.3341335,0.00030686,2]
[381942581,1756431048173,-153.351177,0.000307,3]
[381942582,1756431048183,-157.732642,0.000307,3]
[381942583,1756431048192,-613.56,0.00030732,15]
[381942584,1756431048201,-500.0,0.00030736,7]
[381942585,1756431048210,-1000.0,0.00030757,7]
[381942586,1756431048220,-613.56,0.00030832,15]
[381942587,1756431048229,-1000.0,0.00030867,7]
[381942588,1756431048238,-500.0,0.00030902,7]
[381942589,1756431048248,-613.56,0.00030932,15]
[381942590,1756431048258,-500.0,0.00030953,2]
[381942591,1756431048267,-500.0,0.00030953,2]
[381942592,1756431048277,-500.0,0.00030965,7]
[381942593,1756431048286,-302.78678267,0.0003099,2]
[381942594,1756431048296,-156.0,0.00031,120]
[381942595,1756431048305,-425.52029335,0.00031,7]
[381942596,1756431048315,-160.0,0.00031,30]
[381942597,1756431048324,-845.47023312,0.00031,30]
[381942598,1756431048333,-529.67291817,0.00031,30]
[381942599,1756431048342,-417.15472785,0.00031,30]
[381942600,1756431048352,-160.0,0.00031,30]
[381942601,1756431048361,-217.27834477,0.00031,30]
[381942602,1756431048371,-232.64478309,0.00031,30]
[381942603,1756431048380,-613.56,0.00031032,15]
[381942604,1756431048389,-613.56,0.00031132,15]
[381942605,1756431048400,-500.0,0.00031154,7]
[381942606,1756431048409,-613.56,0.00031232,15]
[381942607,1756431048419,-153.351177,0.000313,4]
[381942608,1756431048428,-157.732642,0.000313,4]
[381942609,1756431048437,-613.56,0.00031332,15]
[381942610,1756431048446,-2249.73,0.000314,7]
[381942611,1756431048456,-613.56,0.00031432,15]
[381942612,1756431048465,-500.0,0.00031444,7]
[381942613,1756431048475,-500.0,0.0003146,7]
[381942614,1756431048485,-1000.0,0.00031502,20]
[381942615,1756431048494,-492.0,0.00031502,20]
[381942616,1756431048503,-613.56,0.00031532,15]
[381942617,1756431048512,-1000.0,0.00031593,7]
[381942618,1756431048521,-613.56,0.00031632,15]
[381942619,1756431048530,-613.56,0.00031732,15]
[381942620,1756431048540,-1000.0,0.00031762,7]
[381942621,1756431048551,-293.85068442,0.00031804,7]
[381942622,1756431048562,-500.0,0.00031812,7]
[381942623,1756431048572,-151.0,0.00031812,7]
[381942624,1756431048582,-225.750289,0.00031812,7]
[381942625,1756431048592,-225.750289,0.00031812,7]
[381942626,1756431048601,-225.750289,0.00031812,7]
[381942627,1756431048611,-225.750289,0.00031812,7]
[381942628,1756431048620,-151.0,0.00031812,7]
[381942629,1756431048629,-151.0,0.00031812,7]
[381942630,1756431048638,-151.0,0.00031812,7]
[381942631,1756431048650,-613.56,0.00031832,15]
[381942632,1756431048659,-500.0,0.00031867,7]
[381942633,1756431048669,-15017.16987434,0.000319,2]
[381942634,1756431048678,-5361.14,0.000319,2]